[Event "Late-Titled-Tuesday-Blitz-February-27-2024"]
[Site "Chess.com"]
[Date "2024.02.27"]
[Round "3"]
[White "Dhaydon19"]
[Black "Hikaru"]
[Result "0-1"]
[WhiteElo "2756"]
[BlackElo "3232"]
[TimeControl "180+1"]
[EndTime "14:30:30 PST"]
[Termination "Hikaru won by checkmate"]

1. d4 {[%clk 0:03:00.9]} 1... g6 {[%clk 0:02:52]} 2. Nf3 {[%clk 0:02:37]} 2...
Bg7 {[%clk 0:02:52.2]} 3. g3 {[%clk 0:02:37.1]} 3... d6 {[%clk 0:02:52.3]} 4.
Bg2 {[%clk 0:02:36.9]} 4... Bd7 {[%clk 0:02:53]} 5. O-O {[%clk 0:02:37]} 5...
Qc8 {[%clk 0:02:53.7]} 6. c4 {[%clk 0:02:37.3]} 6... Bh3 {[%clk 0:02:54.4]} 7.
Ng5 {[%clk 0:02:34.6]} 7... Bxg2 {[%clk 0:02:54.3]} 8. Kxg2 {[%clk 0:02:35]}
8... Nc6 {[%clk 0:02:55.2]} 9. Nf3 {[%clk 0:02:34.8]} 9... e5 {[%clk 0:02:53.3]}
10. d5 {[%clk 0:02:34.5]} 10... Nce7 {[%clk 0:02:53.3]} 11. Nc3 {[%clk
0:02:34.4]} 11... h6 {[%clk 0:02:53]} 12. h4 {[%clk 0:02:33.9]} 12... f5 {[%clk
0:02:53.3]} 13. e3 {[%clk 0:02:29.8]} 13... Nf6 {[%clk 0:02:50.3]} 14. Qc2
{[%clk 0:02:27.3]} 14... c5 {[%clk 0:02:48]} 15. dxc6 {[%clk 0:02:16.5]} 15...
Qxc6 {[%clk 0:02:47.7]} 16. Qa4 {[%clk 0:02:15.7]} 16... Qxa4 {[%clk 0:02:37.7]}
17. Nxa4 {[%clk 0:02:15.2]} 17... Nc6 {[%clk 0:02:38.6]} 18. Rd1 {[%clk
0:02:07.2]} 18... Ke7 {[%clk 0:02:38.7]} 19. Nc3 {[%clk 0:02:06.7]} 19... e4
{[%clk 0:02:37.8]} 20. Nd4 {[%clk 0:02:04.9]} 20... Rac8 {[%clk 0:02:36.1]} 21.
b3 {[%clk 0:02:01.4]} 21... Nxd4 {[%clk 0:02:34.4]} 22. exd4 {[%clk 0:01:47.3]}
22... d5 {[%clk 0:02:34.7]} 23. c5 {[%clk 0:01:40.5]} 23... Ke6 {[%clk
0:02:31.8]} 24. b4 {[%clk 0:01:40.2]} 24... Nd7 {[%clk 0:02:28]} 25. Ne2 {[%clk
0:01:34.6]} 25... Kf7 {[%clk 0:02:26.5]} 26. Be3 {[%clk 0:01:30.2]} 26... Rhd8
{[%clk 0:02:24.6]} 27. Rac1 {[%clk 0:01:29.5]} 27... Nf8 {[%clk 0:02:25]} 28. b5
{[%clk 0:01:28.5]} 28... Ne6 {[%clk 0:02:25.3]} 29. a4 {[%clk 0:01:28.1]} 29...
g5 {[%clk 0:02:24.5]} 30. hxg5 {[%clk 0:01:27.1]} 30... hxg5 {[%clk 0:02:25.4]}
31. f3 {[%clk 0:01:19.3]} 31... Kg6 {[%clk 0:02:19.7]} 32. fxe4 {[%clk
0:01:18.7]} 32... fxe4 {[%clk 0:02:18.8]} 33. Rf1 {[%clk 0:01:16]} 33... Rc7
{[%clk 0:02:11.8]} 34. a5 {[%clk 0:01:13.8]} 34... Rdc8 {[%clk 0:02:08.5]} 35.
b6 {[%clk 0:01:11.2]} 35... axb6 {[%clk 0:02:08.6]} 36. axb6 {[%clk 0:01:11.9]}
36... Rd7 {[%clk 0:02:07.7]} 37. Rc2 {[%clk 0:00:58.7]} 37... Nd8 {[%clk
0:02:06.5]} 38. Ra2 {[%clk 0:00:55.2]} 38... Nc6 {[%clk 0:02:06.3]} 39. Rfa1
{[%clk 0:00:54.9]} 39... Rf8 {[%clk 0:02:04.1]} 40. Rf1 {[%clk 0:00:50.5]} 40...
Rxf1 {[%clk 0:02:03.6]} 41. Kxf1 {[%clk 0:00:51]} 41... Rf7+ {[%clk 0:02:04.5]}
42. Ke1 {[%clk 0:00:50.1]} 42... Kf5 {[%clk 0:02:02.5]} 43. Ra8 {[%clk
0:00:45.5]} 43... Rf8 {[%clk 0:01:58.4]} 44. Rxf8+ {[%clk 0:00:41.8]} 44... Bxf8
{[%clk 0:01:59.3]} 45. Nc3 {[%clk 0:00:40.5]} 45... Ke6 {[%clk 0:01:59.7]} 46.
Nb5 {[%clk 0:00:39.4]} 46... Kf5 {[%clk 0:01:57.7]} 47. Nc3 {[%clk 0:00:38.4]}
47... Nb4 {[%clk 0:01:54.3]} 48. Ke2 {[%clk 0:00:33.1]} 48... Be7 {[%clk
0:01:54.1]} 49. Bd2 {[%clk 0:00:30.4]} 49... Nc6 {[%clk 0:01:41.6]} 50. Be3
{[%clk 0:00:28.5]} 50... Ke6 {[%clk 0:01:41.3]} 51. Nb5 {[%clk 0:00:25.7]} 51...
Bd8 {[%clk 0:01:37.9]} 52. Kf2 {[%clk 0:00:22.6]} 52... Kd7 {[%clk 0:01:26.5]}
53. Nd6 {[%clk 0:00:20.2]} 53... Bxb6 {[%clk 0:01:26.1]} 54. Nxb7 {[%clk
0:00:19.7]} 54... Bc7 {[%clk 0:01:24.1]} 55. Bxg5 {[%clk 0:00:17.7]} 55... Nxd4
{[%clk 0:01:24.3]} 56. Bf4 {[%clk 0:00:15.3]} 56... Bxf4 {[%clk 0:01:21.5]} 57.
gxf4 {[%clk 0:00:15.9]} 57... Kc6 {[%clk 0:01:22.1]} 58. Nd8+ {[%clk 0:00:14.7]}
58... Kxc5 {[%clk 0:01:22.3]} 59. f5 {[%clk 0:00:15]} 59... Nxf5 {[%clk
0:01:21.6]} 60. Ne6+ {[%clk 0:00:14.6]} 60... Kd6 {[%clk 0:01:21.9]} 61. Nf4
{[%clk 0:00:14]} 61... d4 {[%clk 0:01:21]} 62. Ke2 {[%clk 0:00:14]} 62... Ne7
{[%clk 0:01:20.8]} 63. Nh5 {[%clk 0:00:13.3]} 63... Ke5 {[%clk 0:01:18.8]} 64.
Ng3 {[%clk 0:00:13.4]} 64... Nd5 {[%clk 0:01:18.6]} 65. Kf2 {[%clk 0:00:13.1]}
65... d3 {[%clk 0:01:16.8]} 66. Nf1 {[%clk 0:00:13.7]} 66... Kf4 {[%clk
0:01:16.1]} 67. Ke1 {[%clk 0:00:13.4]} 67... e3 {[%clk 0:01:16.5]} 68. Nxe3
{[%clk 0:00:13.5]} 68... Kxe3 {[%clk 0:01:16.7]} 69. Kd1 {[%clk 0:00:13.4]}
69... d2 {[%clk 0:01:17.2]} 70. Kc2 {[%clk 0:00:13.7]} 70... Ke2 {[%clk
0:01:18.1]} 71. Kb3 {[%clk 0:00:13.7]} 71... d1=Q+ {[%clk 0:01:18.4]} 72. Kc4
{[%clk 0:00:14.5]} 72... Nc3 {[%clk 0:01:18.3]} 73. Kc5 {[%clk 0:00:15.3]} 73...
Qd7 {[%clk 0:01:17.4]} 74. Kb4 {[%clk 0:00:15.9]} 74... Qc6 {[%clk 0:01:12.5]}
75. Ka3 {[%clk 0:00:16.6]} 75... Qa4+ {[%clk 0:01:12.5]} 76. Kb2 {[%clk
0:00:17.3]} 76... Kd1 {[%clk 0:01:11.9]} 77. Kxc3 {[%clk 0:00:17.3]} 77... Ke2
{[%clk 0:01:11.7]} 78. Kb2 {[%clk 0:00:17.5]} 78... Kd3 {[%clk 0:01:11.4]} 79.
Kc1 {[%clk 0:00:17.3]} 79... Qa2 {[%clk 0:01:10.3]} 80. Kd1 {[%clk 0:00:17.2]}
80... Qb2 {[%clk 0:01:11.2]} 81. Ke1 {[%clk 0:00:17.9]} 81... Qc2 {[%clk
0:01:12.1]} 82. Kf1 {[%clk 0:00:17.3]} 82... Qd2 {[%clk 0:01:13]} 83. Kg1 {[%clk
0:00:18]} 83... Qe2 {[%clk 0:01:13.9]} 84. Kh1 {[%clk 0:00:18.1]} 84... Ke3
{[%clk 0:01:14.8]} 85. Kg1 {[%clk 0:00:18.6]} 85... Kf3 {[%clk 0:01:15.7]} 86.
Kh1 {[%clk 0:00:19.4]} 86... Kg3 {[%clk 0:00:43.4]} 87. Kg1 {[%clk 0:00:17.4]}
87... Qd3 {[%clk 0:00:41.6]} 88. Kh1 {[%clk 0:00:17.5]} 88... Qc4 {[%clk
0:00:41.9]} 89. Kg1 {[%clk 0:00:18]} 89... Qa6 {[%clk 0:00:40.7]} 90. Kh1 {[%clk
0:00:18.8]} 90... Qa2 {[%clk 0:00:32.8]} 91. Kg1 {[%clk 0:00:19]} 91... Qa1#
{[%clk 0:00:13.4]} 0-1

[Event "Late-Titled-Tuesday-Blitz-February-27-2024"]
[Site "Chess.com"]
[Date "2024.02.27"]
[Round "3"]
[White "Bilan_Danila"]
[Black "FredddieCroderg"]
[Result "1/2-1/2"]
[WhiteElo "2548"]
[BlackElo "2288"]
[TimeControl "180+1"]
[EndTime "14:30:40 PST"]
[Termination "Game drawn - insufficient material"]

1. d4 {[%clk 0:03:00.9]} 1... d5 {[%clk 0:02:58.3]} 2. Nf3 {[%clk 0:03:00.7]}
2... Nf6 {[%clk 0:02:49]} 3. c4 {[%clk 0:02:59.7]} 3... e6 {[%clk 0:02:48.7]} 4.
g3 {[%clk 0:02:59.8]} 4... dxc4 {[%clk 0:02:48.2]} 5. Qa4+ {[%clk 0:02:59.3]}
5... Nbd7 {[%clk 0:02:46.7]} 6. Qxc4 {[%clk 0:02:58.8]} 6... a6 {[%clk
0:02:46.8]} 7. Bg2 {[%clk 0:02:58.5]} 7... b5 {[%clk 0:02:46.3]} 8. Qc2 {[%clk
0:02:44.6]} 8... c5 {[%clk 0:02:45]} 9. a4 {[%clk 0:02:33.6]} 9... Bb7 {[%clk
0:02:40.1]} 10. O-O {[%clk 0:02:29.8]} 10... cxd4 {[%clk 0:02:35.8]} 11. Nxd4
{[%clk 0:02:15]} 11... Bxg2 {[%clk 0:02:34.2]} 12. Kxg2 {[%clk 0:02:15.9]} 12...
Bc5 {[%clk 0:02:25.6]} 13. Nb3 {[%clk 0:02:01.4]} 13... Rc8 {[%clk 0:02:23.7]}
14. Nxc5 {[%clk 0:01:47.8]} 14... Rxc5 {[%clk 0:02:22.6]} 15. Qb3 {[%clk
0:01:40.6]} 15... O-O {[%clk 0:02:16.2]} 16. Be3 {[%clk 0:01:36.9]} 16... Rh5
{[%clk 0:02:05.2]} 17. f3 {[%clk 0:01:29.8]} 17... Nd5 {[%clk 0:02:02.1]} 18.
axb5 {[%clk 0:01:21.6]} 18... axb5 {[%clk 0:01:56.3]} 19. Nd2 {[%clk 0:01:09.6]}
19... Qf6 {[%clk 0:01:35.2]} 20. Ne4 {[%clk 0:00:55.4]} 20... Nxe3+ {[%clk
0:01:29.6]} 21. Qxe3 {[%clk 0:00:52.7]} 21... Qxb2 {[%clk 0:01:23.9]} 22. Rfb1
{[%clk 0:00:37.2]} 22... Qe5 {[%clk 0:01:11.2]} 23. Qc3 {[%clk 0:00:16.7]} 23...
Qxc3 {[%clk 0:00:57.5]} 24. Nxc3 {[%clk 0:00:16.8]} 24... Re5 {[%clk 0:00:51.1]}
25. Rxb5 {[%clk 0:00:15.2]} 25... Re3 {[%clk 0:00:48.5]} 26. Rc1 {[%clk
0:00:03.1]} 26... Rc8 {[%clk 0:00:46.9]} 27. Rb3 {[%clk 0:00:03.1]} 27... h5
{[%clk 0:00:36.2]} 28. Kf2 {[%clk 0:00:03.4]} 28... Re5 {[%clk 0:00:35.3]} 29.
Na2 {[%clk 0:00:03.9]} 29... Rxc1 {[%clk 0:00:34]} 30. Nxc1 {[%clk 0:00:04.8]}
30... Nc5 {[%clk 0:00:32.5]} 31. Rb8+ {[%clk 0:00:04.7]} 31... Kh7 {[%clk
0:00:32]} 32. e4 {[%clk 0:00:05.3]} 32... f5 {[%clk 0:00:31.1]} 33. exf5 {[%clk
0:00:05.1]} 33... exf5 {[%clk 0:00:31.2]} 34. Rc8 {[%clk 0:00:04.6]} 34... h4
{[%clk 0:00:27.8]} 35. Na2 {[%clk 0:00:04]} 35... Nd3+ {[%clk 0:00:26.1]} 36.
Kg2 {[%clk 0:00:04.6]} 36... Re2+ {[%clk 0:00:25.2]} 37. Kh3 {[%clk 0:00:04.7]}
37... Rxa2 {[%clk 0:00:24.6]} 38. gxh4 {[%clk 0:00:03.5]} 38... Nf4+ {[%clk
0:00:23.4]} 39. Kg3 {[%clk 0:00:03.4]} 39... Ng6 {[%clk 0:00:22.7]} 40. h5
{[%clk 0:00:03]} 40... Ne5 {[%clk 0:00:22.3]} 41. Rc5 {[%clk 0:00:03.3]} 41...
Nf7 {[%clk 0:00:21.6]} 42. Rxf5 {[%clk 0:00:03.3]} 42... Nh6 {[%clk 0:00:21.8]}
43. Rb5 {[%clk 0:00:03.2]} 43... Rc2 {[%clk 0:00:21.8]} 44. h4 {[%clk
0:00:02.8]} 44... Rc6 {[%clk 0:00:21.4]} 45. Rg5 {[%clk 0:00:03.1]} 45... Rf6
{[%clk 0:00:21.3]} 46. Kf2 {[%clk 0:00:03.4]} 46... Rf5 {[%clk 0:00:21.3]} 47.
Kg3 {[%clk 0:00:03.3]} 47... Rf7 {[%clk 0:00:21]} 48. Kf2 {[%clk 0:00:03.6]}
48... Rf6 {[%clk 0:00:21.1]} 49. Kg3 {[%clk 0:00:03.9]} 49... Nf5+ {[%clk
0:00:20.8]} 50. Kg4 {[%clk 0:00:04.5]} 50... Ne3+ {[%clk 0:00:20]} 51. Kg3
{[%clk 0:00:05.2]} 51... Kh6 {[%clk 0:00:20.1]} 52. Re5 {[%clk 0:00:03.5]} 52...
Nf5+ {[%clk 0:00:19]} 53. Kg4 {[%clk 0:00:03.9]} 53... Nd6 {[%clk 0:00:16.2]}
54. Rg5 {[%clk 0:00:04.1]} 54... Nf7 {[%clk 0:00:16]} 55. Re5 {[%clk 0:00:04]}
55... Nd8 {[%clk 0:00:14.8]} 56. Rg5 {[%clk 0:00:03.9]} 56... Nc6 {[%clk
0:00:14.5]} 57. f4 {[%clk 0:00:04.3]} 57... Nd4 {[%clk 0:00:13.8]} 58. f5 {[%clk
0:00:04.9]} 58... Ne2 {[%clk 0:00:12.8]} 59. Kf3 {[%clk 0:00:03.1]} 59... Nc3
{[%clk 0:00:12.5]} 60. Kf4 {[%clk 0:00:03.4]} 60... Nd5+ {[%clk 0:00:11.9]} 61.
Ke5 {[%clk 0:00:03.9]} 61... Ne3 {[%clk 0:00:11.6]} 62. Rg6+ {[%clk 0:00:02.6]}
62... Rxg6 {[%clk 0:00:10.1]} 63. hxg6 {[%clk 0:00:03.5]} 63... Ng4+ {[%clk
0:00:09.1]} 64. Ke6 {[%clk 0:00:04]} 64... Nf6 {[%clk 0:00:09]} 65. Kf7 {[%clk
0:00:04.3]} 65... Nh5 {[%clk 0:00:08.4]} 66. Ke6 {[%clk 0:00:04.8]} 66... Nf6
{[%clk 0:00:08.4]} 67. Kf7 {[%clk 0:00:05.3]} 67... Nh5 {[%clk 0:00:08.4]} 68.
Ke6 {[%clk 0:00:05.7]} 68... Ng3 {[%clk 0:00:06.1]} 69. f6 {[%clk 0:00:05.2]}
69... gxf6 {[%clk 0:00:04.7]} 70. Kxf6 {[%clk 0:00:06.1]} 70... Nh5+ {[%clk
0:00:04.7]} 71. Kf7 {[%clk 0:00:06.8]} 71... Ng7 {[%clk 0:00:04.1]} 72. Kf6
{[%clk 0:00:05.7]} 72... Nh5+ {[%clk 0:00:03.7]} 73. Kf7 {[%clk 0:00:06.4]}
73... Ng7 {[%clk 0:00:03.8]} 74. h5 {[%clk 0:00:06.2]} 74... Nxh5 {[%clk
0:00:03.8]} 75. g7 {[%clk 0:00:07.1]} 75... Nxg7 {[%clk 0:00:04]} 1/2-1/2

[Event "Late-Titled-Tuesday-Blitz-February-27-2024"]
[Site "Chess.com"]
[Date "2024.02.27"]
[Round "3"]
[White "Schattman"]
[Black "Eeleyah"]
[Result "1-0"]
[WhiteElo "2439"]
[BlackElo "2321"]
[TimeControl "180+1"]
[EndTime "14:30:42 PST"]
[Termination "Schattman won by resignation"]

1. f4 {[%clk 0:03:00.9]} 1... d5 {[%clk 0:02:57.5]} 2. Nf3 {[%clk 0:03:00.5]}
2... Nc6 {[%clk 0:02:55]} 3. g3 {[%clk 0:03:00.9]} 3... Bg4 {[%clk 0:02:54.9]}
4. Bg2 {[%clk 0:03:01.4]} 4... Bxf3 {[%clk 0:02:55]} 5. Bxf3 {[%clk 0:03:00.9]}
5... e5 {[%clk 0:02:55.4]} 6. fxe5 {[%clk 0:03:00.4]} 6... Nxe5 {[%clk
0:02:55.8]} 7. O-O {[%clk 0:03:00.4]} 7... h5 {[%clk 0:02:51.7]} 8. d4 {[%clk
0:02:59]} 8... Nxf3+ {[%clk 0:02:51.3]} 9. exf3 {[%clk 0:02:58.5]} 9... h4
{[%clk 0:02:51.2]} 10. Qe2+ {[%clk 0:02:57]} 10... Be7 {[%clk 0:02:50.8]} 11.
Qb5+ {[%clk 0:02:53]} 11... c6 {[%clk 0:02:40.9]} 12. Qxb7 {[%clk 0:02:50.9]}
12... hxg3 {[%clk 0:02:32.3]} 13. Qxc6+ {[%clk 0:02:43.5]} 13... Kf8 {[%clk
0:02:32.2]} 14. hxg3 {[%clk 0:02:43.2]} 14... Rc8 {[%clk 0:02:25]} 15. Qa4
{[%clk 0:02:42.2]} 15... Rc4 {[%clk 0:02:20.3]} 16. Qb5 {[%clk 0:02:29.7]} 16...
Rxc2 {[%clk 0:02:09.6]} 17. Bd2 {[%clk 0:02:04.6]} 17... Qc7 {[%clk 0:01:42.3]}
18. Bf4 {[%clk 0:01:49.4]} 18... Rhh2 {[%clk 0:01:39.4]} 19. Re1 {[%clk
0:01:36]} 19... Qc8 {[%clk 0:00:49.9]} 20. g4 {[%clk 0:01:26]} 20... Rhg2+
{[%clk 0:00:49.4]} 21. Kh1 {[%clk 0:01:24.8]} 21... Nf6 {[%clk 0:00:48.9]} 22.
Qb8 {[%clk 0:01:03]} 22... Qxb8 {[%clk 0:00:47.2]} 23. Bxb8 {[%clk 0:01:02.3]}
23... Rxb2 {[%clk 0:00:46.7]} 24. Bf4 {[%clk 0:00:48.9]} 24... Bb4 {[%clk
0:00:38.9]} 25. Rc1 {[%clk 0:00:38.8]} 25... Nd7 {[%clk 0:00:20.8]} 26. Nc3
{[%clk 0:00:36.4]} 26... Bxc3 {[%clk 0:00:18.4]} 27. Rxc3 {[%clk 0:00:35.9]}
27... Nb6 {[%clk 0:00:18.5]} 28. Rc7 {[%clk 0:00:26.9]} 28... Nc4 {[%clk
0:00:17.7]} 29. Re1 {[%clk 0:00:21.9]} 29... g5 {[%clk 0:00:17.1]} 30. Rc8+
{[%clk 0:00:13.4]} 30... Kg7 {[%clk 0:00:17]} 31. Bc7 {[%clk 0:00:13.2]} 31...
Rxa2 {[%clk 0:00:15.8]} 32. Bd8 {[%clk 0:00:12.5]} 32... Rgf2 {[%clk 0:00:14.6]}
33. Bxg5 {[%clk 0:00:10.4]} 33... Rxf3 {[%clk 0:00:13.9]} 34. Kg1 {[%clk
0:00:09.8]} 34... Rg3+ {[%clk 0:00:14]} 35. Kh1 {[%clk 0:00:10]} 35... Rxg4
{[%clk 0:00:14.3]} 36. Be7 {[%clk 0:00:09.9]} 36... Rg6 {[%clk 0:00:13.8]} 37.
Bf8+ {[%clk 0:00:09.6]} 37... Kf6 {[%clk 0:00:13.4]} 38. Rf1+ {[%clk 0:00:06.5]}
38... Kg5 {[%clk 0:00:11.8]} 39. Rg1+ {[%clk 0:00:06.1]} 39... Kf5 {[%clk
0:00:11.4]} 40. Rxg6 {[%clk 0:00:07]} 40... fxg6 {[%clk 0:00:11.5]} 41. Bc5
{[%clk 0:00:06.9]} 41... g5 {[%clk 0:00:10.3]} 42. Rd8 {[%clk 0:00:06.3]} 42...
Ke4 {[%clk 0:00:10.1]} 43. Re8+ {[%clk 0:00:06.4]} 43... Kf3 {[%clk 0:00:10.3]}
44. Rf8+ {[%clk 0:00:05.5]} 44... Kg3 {[%clk 0:00:10.6]} 45. Rf1 {[%clk
0:00:03.3]} 45... g4 {[%clk 0:00:09.1]} 46. Re1 {[%clk 0:00:01.9]} 46... Kf3
{[%clk 0:00:08.4]} 47. Kg1 {[%clk 0:00:02.3]} 47... g3 {[%clk 0:00:08]} 48. Rf1+
{[%clk 0:00:02.9]} 48... Rf2 {[%clk 0:00:07.6]} 49. Rc1 {[%clk 0:00:03.8]} 49...
Ne3 {[%clk 0:00:07.2]} 50. Be7 {[%clk 0:00:02.8]} 50... a5 {[%clk 0:00:06.8]}
51. Bg5 {[%clk 0:00:02.1]} 51... a4 {[%clk 0:00:06.3]} 52. Bxe3 {[%clk
0:00:02.2]} 52... Kxe3 {[%clk 0:00:06.6]} 53. Rc3+ {[%clk 0:00:02.7]} 53... Kxd4
{[%clk 0:00:07.1]} 54. Ra3 {[%clk 0:00:02.8]} 54... Ke5 {[%clk 0:00:05.4]} 55.
Rxa4 {[%clk 0:00:03.1]} 55... d4 {[%clk 0:00:05.7]} 56. Ra3 {[%clk 0:00:03.4]}
56... Kf4 {[%clk 0:00:06.1]} 57. Rd3 {[%clk 0:00:03.5]} 57... Rf3 {[%clk
0:00:05.3]} 58. Rxd4+ {[%clk 0:00:03.6]} 58... Ke3 {[%clk 0:00:05.8]} 59. Ra4
{[%clk 0:00:03.2]} 59... Rf2 {[%clk 0:00:05]} 60. Ra3+ {[%clk 0:00:02.5]} 60...
Kf4 {[%clk 0:00:05.6]} 61. Ra4+ {[%clk 0:00:02.9]} 61... Kg5 {[%clk 0:00:05.7]}
62. Kh1 {[%clk 0:00:03]} 62... Rf3 {[%clk 0:00:05.8]} 63. Kg2 {[%clk 0:00:02.6]}
63... Rb3 {[%clk 0:00:06.1]} 64. Kh3 {[%clk 0:00:02.2]} 64... Rc3 {[%clk
0:00:06.2]} 65. Rb4 {[%clk 0:00:02.1]} 65... Rd3 {[%clk 0:00:06.5]} 66. Ra4
{[%clk 0:00:02.4]} 66... Re3 {[%clk 0:00:06.9]} 67. Rb4 {[%clk 0:00:02.7]} 67...
g2+ {[%clk 0:00:07.8]} 68. Kxg2 {[%clk 0:00:02.1]} 68... Rd3 {[%clk 0:00:08.4]}
69. Rb2 {[%clk 0:00:02.1]} 69... Kf4 {[%clk 0:00:08.8]} 70. Rf2+ {[%clk
0:00:03]} 70... Kg4 {[%clk 0:00:09.1]} 71. Re2 {[%clk 0:00:02.8]} 71... Rc3
{[%clk 0:00:09.5]} 72. Kf2 {[%clk 0:00:03.1]} 72... Kf4 {[%clk 0:00:09.8]} 73.
Ke1 {[%clk 0:00:02.4]} 73... Rh3 {[%clk 0:00:10]} 74. Rf2+ {[%clk 0:00:02.4]}
74... Ke3 {[%clk 0:00:10.4]} 75. Re2+ {[%clk 0:00:02.7]} 75... Kd3 {[%clk
0:00:10.6]} 76. Rd2+ {[%clk 0:00:02.9]} 76... Kc3 {[%clk 0:00:11.4]} 77. Re2
{[%clk 0:00:03.2]} 77... Rh2 {[%clk 0:00:11.8]} 78. Rxh2 {[%clk 0:00:02.7]} 1-0

[Event "Late-Titled-Tuesday-Blitz-February-27-2024"]
[Site "Chess.com"]
[Date "2024.02.27"]
[Round "3"]
[White "Kirill_Klukin"]
[Black "DishonorOnYourCow"]
[Result "1-0"]
[WhiteElo "2850"]
[BlackElo "2591"]
[TimeControl "180+1"]
[EndTime "14:30:50 PST"]
[Termination "Kirill_Klukin won by checkmate"]

1. d4 {[%clk 0:03:00.9]} 1... Nf6 {[%clk 0:02:59.3]} 2. Nf3 {[%clk 0:03:00.6]}
2... g6 {[%clk 0:02:58.5]} 3. e3 {[%clk 0:03:01]} 3... Bg7 {[%clk 0:02:58.1]} 4.
Be2 {[%clk 0:03:01.8]} 4... d5 {[%clk 0:02:58.2]} 5. O-O {[%clk 0:03:02.7]} 5...
O-O {[%clk 0:02:58.4]} 6. b4 {[%clk 0:03:03]} 6... b6 {[%clk 0:02:57.2]} 7. Bb2
{[%clk 0:03:02.8]} 7... Bb7 {[%clk 0:02:57.7]} 8. Nbd2 {[%clk 0:03:03.2]} 8...
Nbd7 {[%clk 0:02:57.6]} 9. c4 {[%clk 0:03:03.4]} 9... c5 {[%clk 0:02:55.4]} 10.
dxc5 {[%clk 0:02:55.2]} 10... bxc5 {[%clk 0:02:56.3]} 11. b5 {[%clk 0:02:55.9]}
11... Nb6 {[%clk 0:02:44.7]} 12. a4 {[%clk 0:02:49.8]} 12... dxc4 {[%clk
0:02:29.9]} 13. Nxc4 {[%clk 0:02:47.9]} 13... Bd5 {[%clk 0:02:27.2]} 14. Nfe5
{[%clk 0:02:26.3]} 14... Ne4 {[%clk 0:02:03.5]} 15. Qc2 {[%clk 0:02:20.5]} 15...
Nxc4 {[%clk 0:01:53.5]} 16. Nxc4 {[%clk 0:02:02.6]} 16... Bxb2 {[%clk
0:01:52.7]} 17. Qxb2 {[%clk 0:02:01.6]} 17... Qc7 {[%clk 0:01:39.7]} 18. Rfd1
{[%clk 0:01:57.4]} 18... Rfd8 {[%clk 0:01:33.5]} 19. Rac1 {[%clk 0:01:36.9]}
19... Rab8 {[%clk 0:01:25.2]} 20. h3 {[%clk 0:01:30.4]} 20... Be6 {[%clk
0:00:50.3]} 21. Qc2 {[%clk 0:01:22.9]} 21... Nd6 {[%clk 0:00:48.7]} 22. Nb2
{[%clk 0:01:00.9]} 22... Rbc8 {[%clk 0:00:47.5]} 23. Nd3 {[%clk 0:00:59.2]}
23... c4 {[%clk 0:00:46.3]} 24. Nb4 {[%clk 0:00:58.2]} 24... Bf5 {[%clk
0:00:43.5]} 25. Qa2 {[%clk 0:00:46.9]} 25... Qb7 {[%clk 0:00:20.5]} 26. Nc6
{[%clk 0:00:43.9]} 26... Re8 {[%clk 0:00:20.1]} 27. Bxc4 {[%clk 0:00:44]} 27...
Be4 {[%clk 0:00:18.4]} 28. Bd5 {[%clk 0:00:42.4]} 28... Bxd5 {[%clk 0:00:16.8]}
29. Qxd5 {[%clk 0:00:43.3]} 29... a6 {[%clk 0:00:14.3]} 30. Rb1 {[%clk
0:00:19.3]} 30... axb5 {[%clk 0:00:14.1]} 31. axb5 {[%clk 0:00:19.8]} 31... Nf5
{[%clk 0:00:12]} 32. Qf3 {[%clk 0:00:16.6]} 32... Qb6 {[%clk 0:00:11.7]} 33. Nd4
{[%clk 0:00:14.3]} 33... Nxd4 {[%clk 0:00:11.5]} 34. Rxd4 {[%clk 0:00:15.2]}
34... Rb8 {[%clk 0:00:11.3]} 35. Rdb4 {[%clk 0:00:15.5]} 35... Qc5 {[%clk
0:00:11]} 36. b6 {[%clk 0:00:15]} 36... e5 {[%clk 0:00:10.9]} 37. b7 {[%clk
0:00:15.3]} 37... Qc7 {[%clk 0:00:10.7]} 38. h4 {[%clk 0:00:13.1]} 38... h5
{[%clk 0:00:10.2]} 39. g3 {[%clk 0:00:13.7]} 39... Kg7 {[%clk 0:00:10]} 40. Rb6
{[%clk 0:00:13.5]} 40... Re7 {[%clk 0:00:10]} 41. Qf6+ {[%clk 0:00:13.6]} 41...
Kg8 {[%clk 0:00:10.4]} 42. Rc6 {[%clk 0:00:12.7]} 42... Rxb7 {[%clk 0:00:03]}
43. Rbc1 {[%clk 0:00:12.9]} 43... Qd7 {[%clk 0:00:02.7]} 44. Rc8+ {[%clk
0:00:12.9]} 44... Re8 {[%clk 0:00:03.3]} 45. R8c5 {[%clk 0:00:05.4]} 45... Rbb8
{[%clk 0:00:03.6]} 46. Rxe5 {[%clk 0:00:05.2]} 46... Rxe5 {[%clk 0:00:04]} 47.
Qxe5 {[%clk 0:00:06.1]} 47... Re8 {[%clk 0:00:04.4]} 48. Qc3 {[%clk 0:00:06.5]}
48... Qe7 {[%clk 0:00:05.3]} 49. Kg2 {[%clk 0:00:06.5]} 49... Rd8 {[%clk
0:00:05.5]} 50. Qc4 {[%clk 0:00:05.5]} 50... Re8 {[%clk 0:00:06.4]} 51. Qf4
{[%clk 0:00:05.5]} 51... Qb7+ {[%clk 0:00:06.6]} 52. Kg1 {[%clk 0:00:05.4]}
52... Qe7 {[%clk 0:00:07.5]} 53. Rc7 {[%clk 0:00:05.4]} 53... Qe6 {[%clk
0:00:07.2]} 54. Kh2 {[%clk 0:00:05.6]} 54... Rd8 {[%clk 0:00:07.6]} 55. Rc2
{[%clk 0:00:03]} 55... Rd1 {[%clk 0:00:07.5]} 56. Qb8+ {[%clk 0:00:01.9]} 56...
Kg7 {[%clk 0:00:07.6]} 57. Qb2+ {[%clk 0:00:02.6]} 57... Kh7 {[%clk 0:00:05.6]}
58. Rd2 {[%clk 0:00:03.2]} 58... Rxd2 {[%clk 0:00:05.4]} 59. Qxd2 {[%clk
0:00:03.2]} 59... Qf5 {[%clk 0:00:06]} 60. Kg1 {[%clk 0:00:03.7]} 60... Qb1+
{[%clk 0:00:05.7]} 61. Kg2 {[%clk 0:00:04.1]} 61... Qf5 {[%clk 0:00:06.6]} 62.
Qe2 {[%clk 0:00:04.3]} 62... Qd5+ {[%clk 0:00:06.8]} 63. Qf3 {[%clk 0:00:05]}
63... Qe6 {[%clk 0:00:07.4]} 64. Qf4 {[%clk 0:00:05.4]} 64... Kg7 {[%clk
0:00:07.7]} 65. e4 {[%clk 0:00:05.7]} 65... Qc6 {[%clk 0:00:07.7]} 66. Qe3
{[%clk 0:00:06.2]} 66... Qb7 {[%clk 0:00:07.6]} 67. Qd4+ {[%clk 0:00:06.6]}
67... Kh7 {[%clk 0:00:07.6]} 68. Qd5 {[%clk 0:00:07]} 68... Qa7 {[%clk
0:00:07.4]} 69. Kf3 {[%clk 0:00:06.1]} 69... Kg7 {[%clk 0:00:07.7]} 70. Qe5+
{[%clk 0:00:06.3]} 70... Kh7 {[%clk 0:00:07.2]} 71. Qf4 {[%clk 0:00:06.9]} 71...
Qa2 {[%clk 0:00:06.5]} 72. Qe3 {[%clk 0:00:06.7]} 72... Kg7 {[%clk 0:00:06.4]}
73. Kg2 {[%clk 0:00:07.3]} 73... Qe6 {[%clk 0:00:05.6]} 74. Qd4+ {[%clk
0:00:07.6]} 74... Kh7 {[%clk 0:00:06]} 75. Qd5 {[%clk 0:00:08]} 75... Qe7 {[%clk
0:00:05.8]} 76. Qd3 {[%clk 0:00:04.2]} 76... Qa7 {[%clk 0:00:05.9]} 77. Qf3
{[%clk 0:00:04.8]} 77... Kg7 {[%clk 0:00:05.9]} 78. g4 {[%clk 0:00:05.3]} 78...
hxg4 {[%clk 0:00:05.7]} 79. Qxg4 {[%clk 0:00:06.2]} 79... Qb7 {[%clk 0:00:05.7]}
80. h5 {[%clk 0:00:06.5]} 80... Kh6 {[%clk 0:00:06]} 81. hxg6 {[%clk 0:00:06.8]}
81... fxg6 {[%clk 0:00:06.9]} 82. Qf4+ {[%clk 0:00:07.5]} 82... Kg7 {[%clk
0:00:06.9]} 83. Qe5+ {[%clk 0:00:07.9]} 83... Kh6 {[%clk 0:00:06.2]} 84. Qh8+
{[%clk 0:00:07.9]} 84... Kg5 {[%clk 0:00:06.6]} 85. Qe5+ {[%clk 0:00:05.7]}
85... Kh6 {[%clk 0:00:06.7]} 86. Kg3 {[%clk 0:00:06.4]} 86... Qb3+ {[%clk
0:00:06.3]} 87. Kh4 {[%clk 0:00:05.5]} 87... Qf3 {[%clk 0:00:04.3]} 88. Qh8#
{[%clk 0:00:05.6]} 1-0